bitfinex-derivatives/quotes_ETHF0:USTF0_20251204
["timestamp","ask_amount","ask_price","bid_price","bid_amount"]
[1764842710753,3.85072636,3202.1,3201.9,3.2078]
[1764842711057,1.4959,3201.2,3201.1,3.2078]
[1764842711252,2.35482636,3201.2,3200.6,3.2078]
[1764842711558,1.4959,3200.7,3200.6,4.409]
[1764842711753,1.4959,3200.7,3200.6,3.88912168]
[1764842712557,1.96788406,3201.0,3200.9,0.67869]
[1764842713347,0.00468406,3201.0,3200.9,1.20119]
[1764842713549,1.9632,3201.5,3201.4,0.67866]
[1764842713946,1.2135,3201.5,3201.4,1.20116]
[1764842714146,0.4673,3201.5,3201.4,1.20116]
[1764842714354,1.4959,3201.9,3201.8,0.67864]
[1764842714554,2.41933869,3201.9,3201.8,0.67864]
[1764842714958,0.7462,3201.9,3201.8,1.20114]
[1764842715157,1.4959,3201.9,3201.8,0.15614]
[1764842722562,1.4959,3201.9,3201.8,0.67864]
[1764842724363,1.4959,3201.9,3201.8,0.15614]
[1764842726466,1.4959,3201.9,3201.8,0.67864]
[1764842728069,0.00468406,3202.2,3201.6,3.2078]
[1764842728265,0.00468406,3202.2,3202.1,4.40893]
[1764842729766,1.50058406,3202.2,3202.1,4.40893]
[1764842729970,1.50058406,3202.2,3202.1,3.88643]
[1764842730368,1.50058406,3202.2,3202.1,4.40893]
[1764842734572,1.50058406,3202.2,3202.1,3.88643]
[1764842735471,1.50058406,3202.2,3202.1,0.15613]
[1764842735968,2.42434086,3202.2,3201.8,1.879]
[1764842736176,1.5217,3201.7,3201.6,0.15615]
[1764842736374,2.95166357,3201.7,3201.6,0.15615]
[1764842736671,1.5217,3201.7,3201.6,0.76275]
[1764842736977,1.5217,3201.7,3201.6,1.36935]
[1764842737362,1.5217,3201.7,3201.6,0.76275]
[1764842740573,1.5217,3201.7,3201.6,0.15615]
[1764842741670,2.44570752,3201.7,3201.6,0.15615]
[1764842745575,2.44570752,3201.7,3200.9,3.2078]
[1764842745782,7.68083909,3201.9,3200.9,3.2078]
[1764842745783,3.31859553,3201.0,3200.9,0.15619]
[1764842745983,4.24260305,3201.0,3200.9,0.15619]
[1764842747079,2.84750752,3201.0,3200.9,0.15619]
[1764842748178,4.24260305,3201.0,3200.9,0.15619]
[1764842748385,2.84750752,3201.0,3200.9,0.15619]
[1764842749675,2.84750752,3201.0,3200.9,0.70559]
[1764842749881,2.84750752,3201.0,3200.9,1.25499]
[1764842751089,2.84750752,3201.0,3200.9,0.15619]
[1764842756288,1.4927,3200.7,3200.6,0.00262168]
[1764842756593,7.08778657,3200.7,3200.6,0.00262168]
[1764842756790,7.08780846,3200.7,3200.6,0.00262168]
[1764842759188,1.4927,3200.6,3200.5,0.15621]
[1764842759388,2.48491293,3200.6,3200.5,0.15621]
[1764842760192,2.48491293,3200.6,3200.5,0.15846735]
[1764842761490,1.4927,3200.1,3200.0,0.15623]
[1764842761680,5.69271293,3200.1,3200.0,0.15623]
[1764842762488,7.09060041,3200.1,3200.0,0.15928371]
[1764842764098,1.4927,3199.7,3199.2,3.2078]
[1764842764494,1.4927,3199.7,3199.2,7.34791192]
[1764842764994,1.4927,3199.7,3199.2,7.3518337]
[1764842765193,1.4927,3199.7,3199.6,0.15625]
[1764842766697,1.4927,3199.7,3199.6,0.89405]
[1764842767095,1.4927,3199.7,3199.6,1.65535]
[1764842767392,1.4927,3199.7,3199.6,0.15625]
[1764842768482,2.48565183,3199.7,3199.6,0.15625]
[1764842770199,1.4927,3199.3,3199.2,0.00392178]
[1764842770495,7.08854736,3199.3,3199.2,0.00392178]
[1764842770692,7.08854736,3199.3,3199.0,0.15628]
[1764842770693,1.4927,3198.9,3198.6,8.0263]
[1764842770896,1.4927,3198.7,3198.6,8.0263]
[1764842771099,1.4927,3198.7,3198.6,8.7641]
[1764842771302,1.4927,3198.7,3198.6,8.0263]
[1764842771500,1.4927,3198.7,3198.6,8.7641]
[1764842771796,1.4927,3198.7,3198.6,0.00383197]
[1764842771797,2.50924806,3198.7,3198.6,0.00383197]
[1764842771993,2.50924806,3198.7,3198.0,3.2078]
[1764842771994,1.4927,3198.1,3198.0,0.15633]
[1764842772199,2.50924806,3198.1,3198.0,0.15633]
[1764842772891,2.50924806,3198.1,3198.0,0.15963563]
[1764842773293,3.90434359,3198.1,3198.0,0.15963563]
[1764842774187,2.50924806,3198.1,3198.0,0.15963563]
[1764842777105,0.4523,3197.5,3197.4,3.2078]
[1764842777308,1.4927,3197.4,3197.3,0.15636]
[1764842777508,1.4927,3197.1,3197.0,3.2078]
[1764842777703,2.50924806,3197.1,3197.0,3.36418]
[1764842778303,2.50924806,3197.1,3197.0,3.36715499]
[1764842778304,2.51216157,3197.1,3197.0,3.36715499]
[1764842778504,2.51216157,3197.1,3197.0,4.10495499]
[1764842778702,2.51216157,3197.1,3197.0,3.36715499]
[1764842778925,0.7371,3196.7,3196.6,4.36694738]
[1764842779100,2.50924806,3196.7,3196.6,4.36694738]
[1764842779906,2.50924806,3196.7,3196.6,4.37072725]
[1764842780205,2.50924806,3196.7,3196.6,3.02802725]
[1764842780408,2.50924806,3196.7,3196.6,0.16017987]
[1764842780904,2.50924806,3196.7,3196.6,1.65927987]
[1764842781105,2.50924806,3196.7,3196.6,0.89797987]
[1764842781305,2.50924806,3196.7,3196.6,0.16017987]
[1764842782103,1.4927,3196.3,3196.2,3.2078]
[1764842782305,1.4927,3196.3,3195.3,0.25115082]
[1764842782306,1.4927,3195.9,3195.8,3.2078]
[1764842782512,1.01654806,3195.9,3195.8,4.86334]
[1764842783103,1.01654806,3195.9,3195.8,4.86616928]
[1764842784112,1.01654806,3195.9,3195.8,8.95077969]
[1764842784906,1.01654806,3195.9,3195.8,14.95077969]
[1764842785210,0.4569916,3197.0,3195.8,15.64821918]
[1764842785407,1.9496916,3197.0,3196.5,3.2078]
[1764842785610,0.4569916,3197.0,3196.5,3.2078]
[1764842785808,1.9496916,3197.0,3196.9,3.36418]
[1764842786013,1.9496916,3197.0,3196.9,0.15638]
[1764842786313,0.4569916,3197.0,3196.9,0.15638]
[1764842786511,1.1940916,3197.0,3196.9,0.15638]
[1764842786919,1.9496916,3197.0,3196.9,0.15638]
[1764842787222,1.1940916,3197.0,3196.9,4.25606883]
[1764842787414,1.9496916,3197.0,3196.9,0.15638]
[1764842787606,1.1940916,3197.0,3196.9,0.15638]
[1764842787810,1.9496916,3197.0,3196.9,0.15638]
[1764842788821,0.0046916,3197.0,3196.9,4.22691298]
[1764842789119,0.4569916,3197.0,3196.9,4.22691298]
[1764842789916,0.4523,3197.5,3197.0,0.15638]
[1764842790310,0.4523,3197.5,3197.0,4.20925127]
[1764842790506,1.351e-05,3197.1,3197.0,4.20925127]
[1764842790813,1.945,3198.0,3197.9,0.15634]
[1764842791715,1.4927,3197.7,3197.6,0.0046916]
[1764842793224,1.4927,3197.7,3197.6,0.1610416]
[1764842794725,1.4927,3197.7,3197.6,0.2997416]
[1764842794920,1.4927,3197.7,3197.6,0.1610416]
[1764842797221,2.40279064,3197.7,3197.6,0.1610416]
[1764842799536,1.957,3197.0,3196.9,5.7834]
[1764842799834,2.86709064,3197.0,3196.9,8.06183806]
[1764842800236,1.34129064,3197.0,3196.9,8.06183806]
[1764842800427,0.91009064,3197.0,3196.9,14.21821806]
[1764842800625,0.4312,3197.5,3197.4,0.85296]
[1764842800933,0.4312,3197.5,3197.4,4.89659264]
[1764842801233,2.45578121,3197.9,3197.8,0.79194]
[1764842801426,0.7785,3197.9,3197.8,0.79194]
[1764842801623,1.5583,3197.9,3197.8,0.79194]
[1764842802029,1.5583,3197.9,3197.8,0.47414]
[1764842802226,1.5583,3197.9,3197.8,0.79194]
[1764842802432,1.5583,3197.9,3197.8,0.15634]
[1764842807436,1.5583,3197.9,3197.8,0.79194]
[1764842807738,3.21066457,3198.0,3197.9,0.47414]
[1764842808035,0.0046916,3198.3,3198.2,0.79192]
[1764842808235,0.0046916,3198.3,3198.2,3.99972]
[1764842808827,0.00823631,3198.3,3198.2,8.10890867]
[1764842810139,1.9895,3199.0,3198.9,0.79189]
[1764842810446,1.9895,3199.0,3198.9,0.15629]
[1764842810840,1.9895,3199.0,3198.9,0.47409]
[1764842811144,1.99227451,3199.0,3198.9,0.47409]
[1764842811848,0.43397451,3199.0,3198.9,0.79189]
[1764842812042,1.21247451,3199.0,3198.9,0.79189]
[1764842812545,1.99227451,3199.0,3198.9,0.15629]
[1764842813240,1.5583,3198.7,3198.6,3.2124916]
[1764842814040,1.5583,3198.7,3198.6,3.3687916]
[1764842814242,2.42044931,3198.7,3198.6,0.1609916]
[1764842816035,3.64177451,3199.0,3198.9,0.15629]
[1764842816239,6.06268163,3199.0,3198.9,0.15629]
[1764842821140,1.5583,3198.7,3198.6,0.0046916]
[1764842821343,2.42090712,3198.7,3198.6,0.0046916]
[1764842821837,2.42090712,3198.7,3198.6,0.1609916]
[1764842826440,1.4869,3198.3,3198.2,5.0897977]
[1764842826647,1.4869,3198.3,3198.2,3.2107977]
[1764842826947,1.4869,3198.3,3198.2,0.1593177]
[1764842829650,1.1904,3197.5,3197.4,4.6969]
[1764842830248,1.1904,3197.5,3197.4,4.85326]
[1764842830755,0.4631,3197.5,3197.4,4.8560513]
[1764842831049,1.95,3198.0,3197.9,1.64544]
[1764842831444,0.4631,3198.0,3197.9,1.64544]
[1764842831638,5.1578,3198.5,3198.4,1.64541]
[1764842831845,6.07307348,3198.5,3198.4,0.86671]
[1764842832041,6.07307348,3198.5,3198.4,1.64541]
[1764842832246,6.07307348,3198.5,3198.4,0.86671]
[1764842832445,6.07307348,3198.5,3198.4,0.15631]
[1764842835754,8.13813222,3198.5,3198.4,0.15631]
[1764842835954,8.13813222,3198.5,3198.4,1e-05]
[1764842836251,1.4869,3197.9,3197.8,3.36414]
[1764842836556,2.42013737,3197.9,3197.8,0.15634]
[1764842837153,2.42013737,3197.9,3197.8,1.64544]
[1764842837352,1.4869,3197.9,3197.8,1.64544]
[1764842838060,1.4869,3197.9,3197.8,0.86674]
[1764842838356,1.4869,3197.9,3197.8,1.64544]
[1764842838552,1.4869,3197.9,3197.8,0.15634]
[1764842839858,2.41887896,3197.9,3197.8,0.15634]
[1764842840459,1.95,3198.0,3197.9,1.64544]
[1764842840651,2.88188593,3198.0,3197.9,0.15634]
[1764842841456,2.88188593,3198.0,3197.4,3.2105913]
[1764842841752,1.95,3197.5,3197.4,3.3669513]
[1764842842354,1.1904,3197.5,3197.4,4.8560513]
[1764842842551,0.4631,3197.5,3197.4,4.8560513]
[1764842843459,1.95,3197.5,3197.4,4.0773513]
[1764842844158,1.95,3197.5,3197.4,3.3669513]
[1764842844853,1.95,3197.5,3197.4,4.0773513]
[1764842845251,1.95,3197.5,3197.4,3.3669513]
[1764842845455,1.95,3197.5,3197.4,4.0773513]
[1764842845649,1.95,3197.5,3197.4,4.8560513]
[1764842845856,1.1904,3197.5,3197.4,4.8560513]
[1764842846159,1.4869,3197.8,3197.7,0.86674]
[1764842846360,3.85305232,3197.8,3197.7,0.86674]
[1764842846558,3.85305232,3197.8,3197.7,0.15634]
[1764842846761,1.65914504,3197.8,3197.7,1.64544]
[1764842846957,0.4631,3198.0,3197.9,0.15634]
[1764842847155,2.88169531,3198.0,3197.9,1.64544]
[1764842848255,4.31600259,3198.0,3197.9,0.15634]
[1764842848463,2.88169531,3198.0,3197.9,0.15634]
[1764842849771,2.88169531,3198.0,3197.9,0.86674]
[1764842850467,2.88169531,3198.0,3197.9,1.64544]
[1764842851470,2.88169531,3198.0,3197.9,0.86674]
[1764842853461,2.88169531,3198.0,3197.9,0.15634]
[1764842855779,6.08949531,3198.0,3197.9,0.15634]
[1764842863969,6.08949531,3198.0,3197.9,0.90364]
[1764842864276,2.88169531,3198.0,3197.9,0.90364]
[1764842864474,2.88169531,3198.0,3197.9,0.15634]
[1764842864976,2.88169531,3198.0,3197.9,0.90364]
[1764842865566,2.88169531,3198.0,3197.9,0.15634]
[1764842866373,2.88169531,3198.0,3197.9,0.90364]
[1764842866563,2.88169531,3198.0,3197.9,0.15634]
[1764842872278,1.9715,3197.5,3197.4,0.0027913]
[1764842872479,4.30140349,3197.5,3197.4,0.1591513]
[1764842877680,2.90319531,3197.5,3197.4,0.9064513]
[1764842877883,2.90319531,3197.5,3197.4,0.1591513]
[1764842878379,4.30140349,3197.5,3197.4,0.1591513]
[1764842880684,4.30140349,3197.5,3197.4,0.9064513]
[1764842880876,4.30140349,3197.5,3197.4,0.1591513]
[1764842887895,2.90319531,3197.5,3197.4,0.1591513]
[1764842888107,0.93169531,3197.5,3197.4,1.7068513]
[1764842888380,3.9444,3197.8,3197.7,1.70404]
[1764842888584,2.45622912,3197.8,3197.7,1.70404]
[1764842889086,1.51,3197.8,3197.7,1.70404]
[1764842889281,2.45298077,3197.8,3197.7,0.15634]
[1764842890082,2.45298077,3197.8,3197.7,0.93564]
[1764842890486,2.45298077,3197.8,3197.7,1.70404]
[1764842890787,2.45298077,3197.8,3197.7,0.93564]
[1764842891087,2.45298077,3197.8,3197.7,0.15634]
[1764842891474,2.45298077,3197.8,3197.7,0.93564]
[1764842891881,2.45298077,3197.8,3197.7,0.15634]
[1764842892480,2.45298077,3197.8,3197.7,0.93564]
[1764842892680,2.45298077,3197.8,3197.7,0.15634]
[1764842893086,2.45298077,3197.8,3197.7,0.93564]
[1764842893283,1.51,3197.8,3197.7,0.93564]
[1764842893889,1.51,3197.8,3197.7,1.70404]
[1764842894188,0.7366,3197.8,3197.7,1.70404]
[1764842894576,1.51,3197.8,3197.7,1.70404]
[1764842896291,0.7366,3197.8,3197.7,1.70404]
[1764842896689,1.51,3197.8,3197.7,1.70404]
[1764842899093,1.51,3197.8,3197.7,0.15634]
[1764842900890,1.51,3197.8,3197.7,0.93564]
[1764842901382,1.9731,3198.0,3197.9,1.5477]
[1764842901578,2.87473262,3198.0,3197.9,0.93564]
[1764842901982,2.10133262,3198.0,3197.9,1.70404]
[1764842902182,0.94023262,3198.0,3197.9,1.70404]
[1764842903795,1.9731,3198.5,3198.4,1.70401]
[1764842904092,2.91314073,3198.5,3198.4,0.15631]
[1764842906092,2.13974073,3198.5,3198.4,1.70401]
[1764842906593,1.94397451,3199.0,3198.9,1.70399]
[1764842907186,0.00277451,3199.0,3198.9,4.91179]
[1764842907393,0.7412916,3199.3,3199.2,1.70397]
[1764842908191,1.5146916,3199.3,3199.2,1.70397]
[1764842908393,1.51790078,3199.3,3199.2,1.70397]
[1764842908587,1.51790078,3199.3,3199.2,0.93557]
[1764842910295,1.51790078,3199.3,3199.2,1.70397]
[1764842912485,0.74450078,3199.3,3199.2,1.70397]
[1764842912690,0.74450078,3199.3,3199.2,5.79304602]
[1764842912691,0.00790078,3199.3,3199.2,5.79304602]
[1764842913095,0.4245,3199.5,3199.4,1.70396]
[1764842913290,1.1611,3199.5,3199.4,4.91176]
[1764842913596,1.9345,3199.5,3199.4,8.99410553]
[1764842914190,1.938563,3199.5,3199.4,8.99410553]
[1764842914400,1.869563,3199.5,3199.4,8.99410553]
[1764842914591,0.004063,3199.5,3199.4,8.99410553]
[1764842917200,1.905963,3199.5,3199.4,8.22570553]
[1764842917494,1.905963,3199.5,3199.4,4.14336]
[1764842917694,7.905963,3199.5,3199.1,0.0046916]
[1764842917904,2.84130818,3199.2,3199.1,0.0046916]
[1764842918399,1.4431,3199.2,3199.1,0.0046916]
[1764842919117,2.84130818,3199.2,3199.1,0.0046916]
[1764842919398,2.84130818,3199.2,3199.1,0.1609716]
[1764842926009,0.7387,3199.2,3199.1,1.6159716]
[1764842926304,1.86107118,3199.5,3199.1,1.6159716]
[1764842926305,1.913763,3199.5,3199.4,1.61126]
[1764842927011,0.004063,3199.5,3199.4,1.61126]
[1764842927512,0.004063,3199.5,3199.4,5.74906433]
[1764842927810,0.712563,3199.5,3199.4,5.74906433]
[1764842928111,1.876163,3199.5,3199.4,5.74906433]
[1764842929312,0.004063,3199.5,3199.4,5.74906433]
[1764842930011,0.712563,3199.5,3199.4,5.74906433]
[1764842930605,0.004063,3199.5,3199.4,5.74906433]
[1764842931103,0.712563,3199.5,3199.4,5.74906433]
[1764842931512,1.133763,3199.5,3199.4,5.74906433]
[1764842932709,1.876163,3199.5,3199.4,5.74906433]
[1764842936717,1.876163,3199.5,3199.4,4.29406433]
[1764842937120,1.876163,3199.5,3199.4,5.04706433]
[1764842937917,1.876163,3199.5,3199.4,5.74906433]
[1764842940124,0.004063,3199.5,3199.4,5.74906433]
[1764842941021,1.876163,3199.5,3199.4,0.15626]
[1764842941221,1.4509,3199.2,3199.1,0.0046916]
[1764842941530,2.41924604,3199.2,3199.1,0.1609716]
[1764842946428,3.85179384,3199.2,3199.1,0.1609716]
[1764842950630,1.476,3198.6,3198.5,3.2078]
[1764842950836,1.9109,3198.5,3198.4,0.15631]
[1764842951033,4.31179384,3198.5,3198.4,0.15631]
[1764842951336,45.11179384,3198.5,3198.4,0.15631]
[1764842951834,1.476,3197.8,3197.7,4.14395214]
[1764842952037,1.476,3197.7,3197.6,5.9308]
[1764842952227,1.476,3197.7,3197.6,6.6609]
[1764842952729,1.476,3197.7,3197.6,3.2078]
[1764842953233,1.476,3197.7,3197.6,3.36415]
[1764842953424,1.476,3197.7,3197.6,0.15635]
[1764842953425,5.65133791,3197.7,3197.6,0.15635]
[1764842954333,4.6838,3197.7,3197.6,0.15635]
[1764842954835,5.65057746,3197.7,3197.6,0.15635]
[1764842956137,4.6838,3197.7,3197.6,0.15635]
[1764842956341,7.08166811,3197.7,3197.6,0.15635]
[1764842958652,47.88166811,3197.7,3197.6,0.15635]
[1764842960737,1.9109,3197.5,3196.8,3.2078]
[1764842960942,2.87622031,3197.5,3197.1,0.15637]
[1764842961145,1.9109,3197.5,3197.1,0.15637]
[1764842961447,1.9109,3197.5,3197.2,0.15637]
[1764842961950,1.9109,3197.5,3196.8,3.2078]
[1764842962553,3.3434478,3197.5,3197.4,0.1591513]
[1764842966263,4.30627772,3197.5,3197.4,0.1591513]
[1764842966763,3.2078,3197.7,3197.6,0.15635]
[1764842967057,4.6838,3197.7,3197.6,0.88645]
[1764842967658,3.9291,3197.7,3197.6,1.64945]
[1764842967963,4.6838,3197.7,3197.6,0.88645]
[1764842968158,4.6838,3197.7,3197.6,0.15635]
[1764842968867,4.6838,3197.7,3197.6,0.88645]
[1764842969256,4.6838,3197.7,3197.6,1.64945]
[1764842969459,4.6838,3197.7,3197.6,0.88645]
[1764842969862,4.6838,3197.7,3197.6,1.64945]
[1764842970063,3.2124916,3198.1,3198.0,1.4931]
[1764842970261,4.6884916,3198.1,3198.0,0.88643]
[1764842970869,4.6884916,3198.1,3198.0,1.64943]
[1764842971166,4.6884916,3198.1,3198.0,0.15633]
[1764842971367,3.9337916,3198.1,3198.0,1.64943]
[1764842971669,4.6884916,3198.1,3198.0,1.64943]
[1764842972869,4.6884916,3198.1,3198.0,0.88643]
[1764842973865,4.6884916,3198.1,3198.0,0.15633]
[1764842975166,3.2124916,3198.1,3198.0,3.0711778]
[1764842975465,0.7828916,3198.1,3198.0,1.63863]
[1764842976166,0.0046916,3198.1,3198.0,1.63863]
[1764842976467,0.7828916,3198.1,3198.0,1.63863]
[1764842976669,1.5595916,3198.1,3198.0,1.63863]
[1764842978063,0.7828916,3198.1,3198.0,1.63863]
[1764842979074,1.75008497,3198.1,3198.0,1.63863]
[1764842979471,0.97188497,3198.1,3198.0,2.08283]
[1764842981568,0.0046916,3198.1,3198.0,6.7231778]
[1764842981763,0.0046916,3198.1,3198.0,10.75674089]
[1764842981966,4.6403478,3198.9,3198.6,0.1563]
[1764842982170,1.5549,3198.7,3198.6,0.8989]
[1764842982372,43.32279614,3198.7,3198.6,0.8989]
[1764842982669,42.54609614,3198.7,3198.6,1.6386]
[1764842982971,2.11218121,3199.0,3198.9,1.63859]
[1764842982972,1.2177916,3199.0,3198.9,1.63859]
[1764842983268,0.438963,3199.5,3199.3,0.15626]
[1764842983472,1.5549,3199.4,3199.3,0.15626]
[1764842984866,0.782263,3199.5,3199.4,1.63856]
[1764842985471,1.558963,3199.5,3199.4,1.63856]
[1764842986069,1.984763,3199.5,3199.4,0.15626]
[1764842986269,1.984763,3199.5,3199.4,1.63436]
[1764842986777,1.984763,3199.5,3199.4,0.87076]
[1764842989579,1.984763,3199.5,3199.4,0.15626]
[1764842989973,1.984763,3199.5,3199.4,0.87076]
[1764842990872,1.984763,3199.5,3199.4,1.63436]
[1764842991981,0.004063,3199.5,3199.4,1.63436]
[1764842992284,0.004063,3199.5,3199.4,4.84216]
[1764842993678,0.004063,3199.5,3199.4,8.81693634]
[1764842996483,3.2078,3200.6,3200.4,1.63431]
[1764842996484,1.174,3200.5,3200.4,1.63431]
[1764842996685,0.95646743,3200.5,3200.4,1.63431]
[1764842996982,3.2078,3200.6,3200.5,1.63431]
[1764842997487,1.4473916,3200.9,3200.8,1.63429]
[1764842997680,0.73351449,3200.9,3200.8,1.63429]
[1764842997881,0.00771449,3200.9,3200.8,1.63429]
[1764842998587,0.73351449,3200.9,3200.8,1.63429]
[1764842999183,1.45041449,3200.9,3200.8,0.87069]
[1764843001592,1.45041449,3200.9,3200.8,0.15619]
[1764843002095,2.4056427,3200.9,3200.8,0.15619]
[1764843004198,2.4056427,3200.9,3200.8,1.62379]
[1764843004390,2.4056427,3200.9,3200.8,0.87069]
[1764843004690,2.4056427,3200.9,3200.8,0.15619]
[1764843004890,1.459,3200.6,3200.5,0.0037381]
[1764843005090,2.41422821,3200.6,3200.5,0.1599481]
[1764843005292,2.41422821,3200.6,3200.5,0.8993481]
[1764843005595,2.41422821,3200.6,3200.5,0.1599481]
[1764843006591,5.62202821,3200.6,3200.5,0.1599481]
[1764843007388,52.42202821,3200.6,3200.2,0.0046916]
[1764843007591,1.459,3200.3,3200.2,0.0046916]
[1764843007793,2.41422821,3200.3,3200.2,0.0046916]
[1764843008603,2.41422821,3200.3,3200.2,0.00742194]
[1764843010399,2.41422821,3200.3,3200.2,0.16364194]
[1764843010697,0.95522821,3200.3,3200.2,1.65614194]
[1764843011709,1.67782821,3200.3,3200.2,1.65614194]
[1764843011905,2.41422821,3200.3,3200.2,1.65614194]
[1764843013103,2.41422821,3200.3,3200.2,0.16364194]
[1764843014205,4.09150942,3200.3,3200.2,0.16364194]
[1764843015407,1.459,3199.6,3199.5,3.9472]
[1764843015603,2.41422821,3199.6,3199.5,4.7003]
[1764843016105,2.41422821,3199.6,3199.5,4.10346]
[1764843016606,2.41422821,3199.6,3199.5,4.10605678]
[1764843018107,2.41422821,3199.6,3199.5,3.36665678]
[1764843020310,2.41422821,3199.6,3199.5,4.85915678]
[1764843020605,0.95522821,3199.6,3199.5,5.30215678]
[1764843020807,0.95522821,3199.6,3199.5,9.31850557]
[1764843021008,3.2078,3200.2,3199.5,15.16224557]
[1764843021207,3.9304,3200.6,3200.5,1.4925]
[1764843021512,4.6668,3200.6,3200.5,1.4925]
[1764843022210,4.6668,3200.6,3200.5,1.64871]
[1764843022510,0.00771449,3200.9,3200.8,0.15619]
[1764843022812,1.46671449,3200.9,3200.8,0.89559]
[1764843023105,42.26671449,3200.9,3200.8,0.89559]
[1764843024198,42.26671449,3200.9,3200.8,0.15619]
[1764843030812,41.53031449,3200.9,3200.8,1.64869]
[1764843031110,1.46671449,3200.9,3200.8,1.64869]
[1764843031313,0.00771449,3200.9,3200.8,1.64869]
[1764843031509,0.7226,3201.5,3201.4,1.64866]
[1764843031709,1.459,3201.7,3201.6,1.64865]
[1764843032416,1.46153038,3201.7,3201.6,1.64865]
[1764843033905,1.46153038,3201.7,3201.6,0.89555]
[1764843034110,1.46153038,3201.7,3201.6,0.88875]
[1764843034510,1.46153038,3201.7,3201.6,0.15615]
[1764843038615,1.46153038,3201.7,3201.3,0.0046916]
[1764843038821,1.4413,3201.4,3201.3,0.0046916]
[1764843039415,42.2413,3201.4,3201.3,0.0046916]
[1764843040020,42.2413,3201.4,3201.3,0.8934616]
[1764843040220,42.2413,3201.4,3201.3,0.1608616]
[1764843046423,1.9319,3201.0,3200.9,3.2078]
[1764843046624,1.9319,3201.0,3200.9,3.36399]
[1764843047923,1.9319,3201.0,3200.9,4.09459]
[1764843048125,1.9319,3201.0,3200.9,4.80049]
[1764843048323,1.9319,3201.0,3200.9,4.09459]
[1764843048625,1.9319,3201.0,3200.9,3.36399]
[1764843049419,1.9319,3201.0,3200.9,4.09459]
[1764843049826,1.9319,3201.0,3200.9,4.80049]
[1764843053429,1.9319,3201.0,3200.9,1.59269]
[1764843054324,1.9319,3201.0,3200.9,0.88679]
[1764843054526,1.9319,3201.0,3200.9,1.59269]
[1764843056330,1.9319,3201.0,3200.9,3.02369215]
[1764843057231,4.7069,3201.3,3201.2,0.88677]
[1764843057420,5.61028642,3201.3,3201.2,0.88677]
[1764843058021,1.4991,3200.3,3200.2,3.901]
[1764843058225,1.4991,3200.3,3198.5,0.4393]
[1764843058226,1.4991,3200.3,3198.8,3.2078]
[1764843058227,2.8620043,3200.3,3198.8,3.2078]
[1764843058428,4.63880215,3199.3,3199.0,0.4393]
[1764843058631,40.8,3199.1,3199.0,1.8758]
[1764843058925,41.70389631,3199.1,3199.0,1.8758]
[1764843059131,40.80375456,3199.1,3199.0,0.8719555]
[1764843059527,40.80375456,3199.1,3199.0,1.6025555]
[1764843059923,40.80375456,3199.1,3199.0,0.4420555]
[1764843060128,40.80375456,3199.1,3198.7,0.0046916]
[1764843060129,41.70609252,3199.1,3198.7,0.0046916]
[1764843060434,3.2078,3198.8,3198.7,0.4345916]
[1764843060732,4.11013796,3198.8,3198.7,0.4345916]
[1764843060931,4.11013796,3198.8,3198.7,1.1651916]
[1764843061133,4.11013796,3198.8,3198.7,1.16806634]
[1764843061332,3.2078,3198.8,3198.7,1.16806634]
[1764843061533,3.2078,3198.8,3198.7,0.43746634]
[1764843062128,3.2078,3198.8,3198.7,1.87396634]
[1764843062530,40.80375456,3199.1,3199.0,1.8758]
[1764843063534,0.00375456,3199.1,3199.0,1.8758]
[1764843063830,3.2078,3199.2,3199.1,1.4747]
[1764843064034,3.2078,3199.2,3199.1,1.63098]
[1764843064735,3.21084552,3199.2,3199.1,1.63098]
[1764843066532,3.21084552,3199.2,3199.1,0.7306]
[1764843066743,3.21084552,3199.2,3199.1,0.4299]
[1764843067835,44.01084552,3199.2,3199.1,0.4299]
[1764843068233,44.01084552,3199.2,3199.0,0.4393]
[1764843068534,44.01084552,3199.2,3198.7,0.00756634]
[1764843068730,3.2078,3198.8,3198.7,0.00756634]
[1764843069240,3.2078,3198.8,3198.5,0.46343429]
[1764843069540,3.2078,3198.8,3198.5,1.31833429]
[1764843069737,3.2078,3198.8,3198.5,0.46343429]
[1764843070040,3.2078,3198.8,3198.5,0.46653663]
[1764843070738,3.2078,3198.8,3198.5,0.00310234]
[1764843071639,3.2078,3198.8,3198.5,0.53960234]
[1764843072232,3.2078,3198.8,3198.5,1.39450234]
[1764843072433,3.2078,3198.8,3198.5,0.53960234]
[1764843074647,3.2078,3198.6,3198.5,0.53960234]
[1764843075242,3.2078,3198.6,3198.5,0.00310234]
[1764843075440,4.14512883,3198.6,3198.5,0.00310234]
[1764843075845,44.94512883,3198.6,3198.5,0.53960234]
[1764843078243,53.00936958,3198.6,3198.0,0.4393]
[1764843078441,3.2078,3198.1,3198.0,0.4393]
[1764843078649,4.14512883,3198.1,3198.0,0.4393]
[1764843079347,4.14512883,3198.1,3198.0,0.44236293]
[1764843080944,4.14512883,3198.1,3198.0,0.00306293]
[1764843081537,4.14512883,3198.1,3198.0,0.53956293]
[1764843082846,4.14512883,3198.1,3198.0,2.29489293]
[1764843083150,3.2078,3198.5,3198.4,1.75531]
[1764843083350,4.14581783,3198.5,3198.4,1.75531]
[1764843083646,3.2078,3198.9,3198.5,0.5365]
[1764843083850,3.2078,3198.9,3198.8,1.599]
[1764843084153,3.2078,3198.9,3198.8,1.75529]
[1764843088053,0.89624552,3199.2,3199.1,1.599]
[1764843088252,1.67890546,3199.7,3199.6,1.599]
[1764843088447,3.2078,3199.8,3199.7,1.75525]
[1764843089354,3.21114348,3199.8,3199.7,1.75525]
[1764843089655,4.10434348,3199.8,3199.7,1.75525]
[1764843089949,4.81054348,3199.8,3199.7,1.75525]
[1764843093259,3.21114348,3199.8,3199.7,1.75525]
[1764843094262,4.24364348,3199.8,3199.7,1.75525]
[1764843094465,3.21114348,3199.8,3199.7,1.75525]
[1764843095263,4.24364348,3199.8,3199.7,1.75525]
[1764843095661,3.21114348,3199.8,3199.7,1.75525]
[1764843096967,4.24364348,3199.8,3199.7,1.75525]
[1764843097266,5.13204348,3199.8,3199.7,1.75525]
[1764843097969,5.13204348,3199.8,3199.7,1.01115]